fUST/lending_fUST_20251103
["ID","MTS","AMOUNT","RATE_DAILY","PERIOD"]
[392915711,1762134632424,-500.0,0.00018449,2]
[392915713,1762134632433,-248.29158575,0.00018449,2]
[392915715,1762134632442,-468.68697393,0.0001845,2]
[392915718,1762134632452,-214.27410368,0.0001845,2]
[392915721,1762134632461,-856.23931832,0.0001845,2]
[392915724,1762134632469,-307.14507337,0.0001845,2]
[392915727,1762134632479,-14004.72192048,0.0001845,2]
[392915730,1762134632490,-325.0,0.0001845,2]
[392915732,1762134632501,-609.40503142,0.0001845,2]
[392915742,1762134639016,-310.24602,0.0001845,2]
[392915743,1762134639028,-15547.13291546,0.0001845,2]
[392915744,1762134639039,-12627.30853458,0.0001845,2]
[392915745,1762134639074,-9664.22185923,0.0001845,2]
[392915749,1762134640392,-199323.79994533,0.0001845,2]
[392915751,1762134640745,-3e-08,0.0001845,2]
[392915752,1762134640756,-9978.68397322,0.0001845,2]
[392915753,1762134640767,-7461.79838955,0.0001845,2]
[392915754,1762134642198,382.78,0.00037514,60]
[392915771,1762134643336,-8666.30288965,0.0001845,2]
[392915781,1762134648596,500.0,0.00037514,60]
[392915782,1762134648826,500.0,0.00037514,60]
[392915783,1762134649066,459.71,0.00037514,60]
[392915786,1762134652194,500.0,0.00037514,60]
[392915789,1762134652429,417.15,0.00037514,60]
[392915791,1762134654329,500.0,0.00037514,60]
[392915792,1762134654629,462.71,0.00037514,60]
[392915794,1762134655790,500.0,0.00037514,60]
[392915795,1762134662209,500.0,0.00037514,60]
[392915796,1762134664195,470.7,0.00037514,60]
[392915797,1762134666054,502.50198783,0.00037514,60]
[392915798,1762134674308,338.84741575,0.00037514,60]
[392915799,1762134686373,500.0,0.00037514,60]
[392915800,1762134689854,500.0,0.00037514,60]
[392915801,1762134691666,500.0,0.00037514,60]
[392915802,1762134693514,500.0,0.00037514,60]
[392915803,1762134694317,2002.1513573,0.00032876,120]
[392915809,1762134705487,500.0,0.00037514,60]
[392915810,1762134709053,500.0,0.00037514,60]
[392915811,1762134713940,502.52071008,0.00037514,60]
[392915812,1762134716944,500.0,0.00037514,60]
[392915813,1762134719533,500.0,0.00037514,60]
[392915814,1762134724380,500.0,0.00037514,60]
[392915815,1762134730131,520.88605678,0.00037514,30]
[392915816,1762134730513,500.0,0.00037514,60]
[392915817,1762134732242,501.67041192,0.00037514,60]
[392915818,1762134734866,500.0,0.00037514,60]
[392915819,1762134736674,509.43091173,0.00037514,60]
[392915820,1762134739437,500.0,0.00037514,60]
[392915821,1762134741540,500.0,0.00037514,60]
[392915822,1762134743389,500.0,0.00037514,60]
[392915823,1762134743624,400.28,0.00037514,60]
[392915824,1762134745394,500.0,0.00037514,60]
[392915825,1762134745649,502.52099987,0.00037514,60]
[392915826,1762134746334,500.0,0.00037514,60]
[392915827,1762134746570,221.12,0.00037514,60]
[392915828,1762134751716,500.0,0.00037514,60]
[392915829,1762134757923,500.0,0.00037514,60]
[392915830,1762134761208,500.0,0.00037508,60]
[392915831,1762134761481,500.0,0.00037508,60]
[392915832,1762134762776,373.14,0.00037508,60]
[392915833,1762134762834,500.0,0.00037508,60]
[392915834,1762134763112,339.87,0.00037508,60]
[392915835,1762134764786,500.0,0.00037508,60]
[392915836,1762134765018,2003.33887323,0.00032876,120]
[392915837,1762134765270,500.0,0.00037508,60]
[392915838,1762134765374,500.0,0.00037508,60]
[392915839,1762134765516,502.3688519,0.00037508,60]
[392915840,1762134769707,500.0,0.00037508,60]
[392915841,1762134770780,561.18,0.00037508,60]
[392915843,1762134773766,500.0,0.00037508,60]
[392915844,1762134773887,500.0,0.00037508,60]
[392915845,1762134774015,500.0,0.00037508,60]
[392915846,1762134774268,566.74,0.00037508,60]
[392915847,1762134774778,500.0,0.00037508,60]
[392915848,1762134775086,161.32108032,0.00037508,60]
[392915849,1762134777089,500.0,0.00037508,60]
[392915850,1762134777315,501.87369293,0.00037508,60]
[392915851,1762134777443,500.0,0.00037508,60]
[392915852,1762134777949,443.8,0.00037508,60]
[392915853,1762134778523,500.0,0.00037508,60]
[392915854,1762134785351,500.0,0.00037508,60]
[392915855,1762134785631,501.69734935,0.00037508,60]
[392915856,1762134789466,500.0,0.00037508,60]
[392915857,1762134793088,588.19158068,0.00037508,60]
[392915858,1762134798146,502.69762082,0.00037508,60]
[392915859,1762134804799,46000.0,0.00018,2]
[392915860,1762134830782,172.0,0.00037508,60]
[392915861,1762134832753,330.9,0.00037508,60]
[392915862,1762134863971,221.22,0.00032876,120]
[392915863,1762134865634,500.0,0.00037508,60]
[392915864,1762134865866,500.0,0.00037508,60]
[392915865,1762134886521,150.0,0.00017993,2]
[392915866,1762134898556,500.0,0.00037508,60]
[392915867,1762134898681,500.0,0.00037508,60]
[392915868,1762134900698,510.28579102,0.00037508,60]
[392915869,1762134913837,500.0,0.00037508,60]
[392915870,1762134921347,226.15298914,0.00037508,60]
[392915871,1762134922879,500.0,0.00037508,60]
[392915872,1762134923162,500.0,0.00037508,60]
[392915873,1762134924994,505.92043252,0.00037508,60]
[392915874,1762134935884,557.02336973,0.00037508,60]
[392915875,1762134943687,500.0,0.00037508,60]
[392915876,1762134944494,500.0,0.00037508,60]
[392915877,1762134944805,500.0,0.00037508,60]
[392915878,1762134945086,500.0,0.00037508,60]
[392915879,1762134945700,475.07060578,0.00037508,60]
[392915880,1762134947152,500.0,0.00037508,60]
[392915881,1762134956704,500.0,0.00037508,60]
[392915882,1762134959974,500.0,0.00037508,60]
[392915883,1762134963240,500.0,0.00037508,60]
[392915884,1762134968107,-168.0,0.00018017,2]
[392915885,1762134968133,-150.0,0.00018038,2]
[392915886,1762134968161,-82.44967798,0.00018123,2]
[392915887,1762134969403,168.0,0.00017992,2]
[392915888,1762134970025,569.81651503,0.00037508,60]
[392915889,1762134972204,508.44485241,0.00037508,60]
[392915901,1762134979095,500.0,0.00037508,60]
[392915902,1762134980259,168.0,0.00017984,2]
[392915903,1762134994382,500.0,0.00037508,60]
[392915916,1762135118157,-85.55032202,0.00018123,2]
[392915917,1762135118181,-82.4594796,0.00018131,2]
[392915919,1762135159947,5000.0,0.0001801,2]
[392915923,1762135175894,1597.89843017,0.0001801,2]
[392915924,1762135184111,5000.0,0.0001801,2]
[392915927,1762135207365,5000.0,0.0001801,2]
[392915928,1762135212265,500.0,0.00037498,60]
[392915932,1762135226360,500.63951961,0.00037498,60]
[392915933,1762135230888,506.28966647,0.00037498,60]
[392915935,1762135232593,500.0,0.00037498,60]
[392915936,1762135234227,500.0,0.00037498,60]
[392915937,1762135234550,500.0,0.00037498,60]
[392915938,1762135237676,500.0,0.00037498,60]
[392915939,1762135240095,177.90825304,0.00037498,60]
[392915941,1762135240969,610.83862637,0.00037498,60]
[392915942,1762135244212,501.27329891,0.00037498,60]
[392915943,1762135244390,1400.0,0.00032877,120]
[392915944,1762135249099,501.6267846,0.00037498,60]
[392915950,1762135255391,159.58916048,0.00037498,60]
[392915951,1762135257213,501.03255154,0.00037498,60]
[392915952,1762135258009,503.47494006,0.00037498,60]
[392915953,1762135259151,512.28128933,0.00037498,60]
[392915954,1762135261315,501.97850041,0.00037498,60]
[392915955,1762135262831,501.7976166,0.00037498,60]
[392915956,1762135264652,548.6996577,0.00037498,60]
[392915957,1762135264725,502.31212666,0.00037498,60]
[392915958,1762135267927,500.7170196,0.00037498,60]
[392915959,1762135272573,504.74035107,0.00037498,60]
[392915960,1762135275241,505.03037281,0.00037498,60]
[392915961,1762135277423,505.31278517,0.00037498,60]
[392915962,1762135279120,514.99724727,0.00037498,60]
[392915963,1762135279715,150.0,0.00017967,2]
[392915964,1762135284050,501.87676401,0.00037498,60]
[392915965,1762135285843,502.8105255,0.00037498,60]
[392915966,1762135288322,505.43001216,0.00037498,60]
[392915967,1762135290773,500.64595678,0.00037498,60]
[392915968,1762135299669,504.57054095,0.00037498,60]
[392915970,1762135307745,500.95868504,0.00037498,60]
[392915971,1762135329837,500.43494091,0.00037498,60]
[392915973,1762135331657,527.99640792,0.00037498,60]
[392915974,1762135342173,501.64044302,0.00037498,60]
[392915983,1762135360771,150.0,0.00017946,2]
[392915985,1762135403195,-518.28035944,0.00018082,2]
[392915986,1762135404908,4351.0046145,0.00017467,2]
[392915987,1762135405313,-320.80538786,0.00018082,2]
[392915988,1762135407382,-209.04322641,0.00018082,2]
[392915989,1762135409020,-159.94209765,0.00018082,2]
[392915990,1762135412144,-457.36738231,0.00018082,2]
[392915991,1762135414819,-381.98308222,0.00018082,2]
[392915992,1762135416408,-164.1797153,0.00018082,2]
[392915993,1762135430071,1869.97817956,0.0001801,2]
[392915994,1762135430894,-35.17273105,0.00018082,2]
[392915995,1762135430917,-132.82726895,0.00018107,2]
[392915996,1762135437932,642.20363223,0.0001801,2]
[392915997,1762135438495,-183.30970447,0.00018107,2]
[392915998,1762135438519,-93.8285608,0.00018131,2]
[392915999,1762135441790,-150.0,0.00018114,2]
[392916000,1762135441815,-109.71316256,0.00018131,2]
[392916001,1762135501447,223.109262,0.00037497,60]
[392916012,1762135514828,500.0,0.00037497,60]
[392916030,1762135519456,500.0,0.00037497,60]
[392916052,1762135541178,500.0,0.00037497,60]
[392916053,1762135554307,500.0,0.00037497,60]
[392916065,1762135643113,-150.0,0.00018028,2]
[392916066,1762135643134,-32.45827664,0.00018131,2]
[392916067,1762135643157,-35.86150824,0.0001814,2]
[392916073,1762135665635,200.0,0.00032877,120]
[392916080,1762135675554,1277.804092,0.00017408,2]
[392916082,1762135683298,204.99,0.00016234,2]
[392916083,1762135683591,204.99,0.00016234,2]
[392916102,1762135748140,-150.0,0.00018029,2]
[392916103,1762135748171,-315.0084972,0.00018085,2]
[392916104,1762135748204,-40.75948662,0.0001814,2]
[392916106,1762135781403,240.9835239,0.00037497,120]
[392916116,1762135815077,150.0,0.00032877,120]
[392916164,1762135832530,-177.37900514,0.0001814,2]
[392916166,1762135832539,-168.0,0.00018204,2]
[392916168,1762135832549,-500.0,0.00018444,2]
[392916170,1762135832558,-500.0,0.00018444,2]
[392916172,1762135832567,-500.0,0.00018444,2]
[392916174,1762135832576,-268.0,0.00018444,2]
[392916176,1762135832584,-300.0,0.00018444,2]
[392916178,1762135832593,-300.0,0.00018444,2]
[392916180,1762135832602,-300.0,0.00018444,2]
[392916182,1762135832611,-300.0,0.00018444,2]
[392916184,1762135832620,-1200.0,0.00018444,2]
[392916186,1762135832629,-954.98749398,0.00018445,2]
[392916273,1762135838392,-18946.50343947,0.00018445,2]
[392916275,1762135838404,-12584.99505505,0.00018445,2]
[392916321,1762135840736,-3e-08,0.00018445,2]
[392916450,1762135846443,-157.90336459,0.00018444,2]
[392916451,1762135846452,-500.0,0.00018444,2]
[392916452,1762135846462,-500.0,0.00018444,2]
[392916453,1762135846471,-349.20916841,0.00018444,2]
[392916454,1762135846480,-21.54983809,0.00018445,2]
[392916455,1762135846491,-10795.56837991,0.00018445,2]
[392916456,1762135846502,-4429.94246959,0.00018445,2]
[392916457,1762135979480,205.0,0.00037495,60]
[392916459,1762136063072,-308.83400442,0.00018156,2]
[392916463,1762136232954,503.25475605,0.00032,120]
[392916466,1762136273137,-379.0986642,0.00018065,2]
[392916512,1762136449471,250.0,0.00017207,2]
[392916514,1762136477949,315.5203204,0.00037496,120]
[392916532,1762136562385,999.0,0.00017414,2]
[392916574,1762136697753,150.0,0.00017895,2]
[392916579,1762136708098,-209.9013358,0.00018065,2]
[392916580,1762136708121,-48.07872432,0.00018088,2]
[392916606,1762136728546,217.69322268,0.0001801,2]
[392916615,1762136738080,-290.79421355,0.00018082,2]
[392916617,1762136739733,-187.95534074,0.00018082,2]
[392916619,1762136743491,-194.4027745,0.00018082,2]
[392916621,1762136744627,478.74955429,0.0001801,2]
[392916622,1762136744979,-184.41014922,0.00018082,2]
[392916624,1762136746578,-180.43184543,0.00018082,2]
[392916627,1762136752225,-176.96052922,0.00018082,2]
[392916638,1762136767566,736.20529837,0.0001801,2]
[392916639,1762136769832,-155.89491663,0.00018082,2]
[392916640,1762136772784,-125.1521209,0.00018082,2]
[392916641,1762136772805,-245.26857823,0.00018088,2]
[392916644,1762136783894,845.514975,0.00013699,2]
[392916648,1762136790559,526.31561576,0.0001801,2]
[392916652,1762136812098,-15.36102471,0.00018088,2]
[392916653,1762136812120,-89.16599558,0.00018156,2]
[392916654,1762136812141,-589.0,0.00018215,2]
[392916655,1762136812161,-398.0,0.0001828,2]
[392916656,1762136812181,-3540.88550859,0.000184,2]
[392916657,1762136812201,-5750.09940388,0.00018406,2]
[392916658,1762136812222,-500.0,0.00018444,2]
[392916659,1762136812243,-632.04864587,0.00018444,2]
[392916660,1762136812262,-505.60983424,0.00018444,2]
[392916661,1762136812405,-500.0,0.00018444,2]
[392916662,1762136812427,-500.0,0.00018444,2]
[392916663,1762136812449,-264.58074934,0.00018444,2]
[392916664,1762136812469,-971.22375479,0.00018444,2]
[392916699,1762136896920,7000.0099999,0.00017456,2]
[392916701,1762136897613,5000.0,0.00037496,69]
[392916703,1762136905204,2743.00332844,0.00029,120]
[392916704,1762136906315,378.6500901,0.00037496,60]
[392916705,1762136907212,7085.94014951,0.00017,2]
[392916709,1762136914731,159.35558646,0.00037496,60]
[392916716,1762136923327,1000.0,0.00017456,2]
[392916784,1762137032784,-166.28889169,0.00018305,2]
[392916786,1762137032794,-302.53416071,0.00018306,2]
[392916788,1762137032806,-166.28889168,0.00018306,2]
[392916790,1762137032815,-910.0,0.00018405,2]
[392916792,1762137032825,-300.0,0.00018405,2]
[392916794,1762137032834,-242.0,0.00018405,2]
[392916796,1762137032844,-1200.0,0.00018405,2]
[392916798,1762137032852,-11548.42804411,0.00018406,2]
[392916800,1762137032862,-3373.29256429,0.0001842,2]
[392916888,1762137038681,-10621.73596681,0.0001842,2]
[392916889,1762137038691,-1501.7463746,0.0001842,2]
[392916890,1762137038700,-150.0,0.00018435,2]
[392916891,1762137038709,-151.0,0.00018445,2]
[392916892,1762137038719,-202.94658419,0.00018445,2]
[392916893,1762137038728,-331.0,0.00018445,2]
[392916894,1762137038738,-166.0,0.00018445,2]
[392916895,1762137038747,-331.0,0.00018445,2]
[392916896,1762137038757,-2266.45332388,0.00018445,2]
[392916897,1762137038766,-331.0,0.00018445,2]
[392916899,1762137038776,-331.0,0.00018445,2]
[392916901,1762137038786,-331.0,0.00018445,2]
[392916902,1762137038795,-331.0,0.00018445,2]
[392916903,1762137038805,-331.0,0.00018445,2]
[392916904,1762137038814,-331.0,0.00018445,2]
[392916905,1762137038823,-331.0,0.00018445,2]
[392916906,1762137038833,-331.0,0.00018445,2]
[392916907,1762137038842,-331.0,0.00018445,2]
[392916908,1762137038854,-331.0,0.00018445,2]
[392916909,1762137038863,-331.0,0.00018445,2]
[392916910,1762137038873,-331.0,0.00018445,2]
[392916911,1762137038882,-331.0,0.00018445,2]
[392916912,1762137038892,-331.0,0.00018445,2]
[392916913,1762137038901,-253.07106432,0.00018445,2]
[392916914,1762137038911,-331.0,0.00018445,2]
[392916915,1762137038920,-331.0,0.00018445,2]
[392916916,1762137038930,-331.0,0.00018445,2]
[392916917,1762137038939,-331.0,0.00018445,2]
[392916918,1762137038949,-331.0,0.00018445,2]
[392916919,1762137038959,-331.0,0.00018445,2]
[392916920,1762137038969,-331.0,0.00018445,2]
[392916921,1762137038978,-331.0,0.00018445,2]
[392916922,1762137038987,-331.0,0.00018445,2]
[392916923,1762137038998,-331.0,0.00018445,2]
[392916924,1762137039007,-331.0,0.00018445,2]
[392916925,1762137039016,-331.0,0.00018445,2]
[392916926,1762137039025,-172.71737812,0.00018445,2]
[392916927,1762137039035,-158.21586677,0.0001845,2]
[392916928,1762137039043,-500.0,0.00018473,2]
[392916929,1762137039052,-3973.61908008,0.000185,2]
[392916930,1762137039065,-1185.6170831,0.000185,2]
[392916931,1762137039076,-3769.99214303,0.000185,2]
[392916933,1762137040868,-3e-08,0.000185,2]
[392916934,1762137040880,-12324.67896678,0.000185,2]
[392916935,1762137040895,-2623.98,0.000185,2]
[392917029,1762137043821,-1583.997213,0.000184,2]
[392917038,1762137043881,-2249.40238958,0.000184,2]
[392917041,1762137043891,-661122.11272698,0.000185,2]
[392917044,1762137043900,-7589.6,0.000185,2]
[392917048,1762137043909,-577.0,0.00018506,2]
[392917051,1762137043918,-577.0,0.00018511,2]
[392917053,1762137043927,-632.23060363,0.00018524,2]
[392917055,1762137043936,-577.0,0.00018527,2]
[392917057,1762137043945,-286.304,0.00018527,2]
[392917059,1762137043954,-10470.75,0.00018549,7]
[392917061,1762137043963,-500.0,0.00018564,2]
[392917063,1762137043972,-151.0,0.00018564,2]
[392917065,1762137043981,-246.9030978,0.00018564,2]
[392917067,1762137043990,-500.0,0.00018564,2]
[392917069,1762137043999,-500.0,0.00018564,2]
[392917071,1762137044009,-462.5954099,0.00018564,2]
[392917073,1762137044018,-500.0,0.00018565,2]
[392917075,1762137044027,-500.0,0.00018567,2]
[392917077,1762137044035,-152.2,0.00018567,2]
[392917079,1762137044045,-152.2,0.00018567,2]
[392917081,1762137044054,-152.19,0.00018567,2]
[392917082,1762137044065,-398.0,0.00018593,2]
[392917083,1762137044075,-398.0,0.00018598,2]
[392917084,1762137044084,-884.34296551,0.00018599,2]
[392917085,1762137044093,-500.0,0.00018604,2]
[392917086,1762137044103,-151.0,0.00018604,2]
[392917087,1762137044112,-151.0,0.00018604,2]
[392917088,1762137044121,-500.0,0.00018604,2]
[392917090,1762137044130,-500.0,0.00018604,2]
[392917092,1762137044140,-500.0,0.00018604,2]
[392917094,1762137044149,-500.0,0.00018604,2]
[392917096,1762137044158,-500.0,0.00018604,2]
[392917098,1762137044167,-500.0,0.00018604,2]
[392917100,1762137044177,-500.0,0.00018604,2]
[392917102,1762137044186,-151.0,0.00018604,2]
[392917104,1762137044196,-151.0,0.00018604,2]
[392917106,1762137044205,-151.0,0.00018604,2]
[392917108,1762137044215,-151.36299432,0.00018604,2]
[392917110,1762137044224,-500.0,0.00018604,2]
[392917112,1762137044234,-500.0,0.00018604,2]
[392917114,1762137044243,-500.0,0.00018604,2]
[392917116,1762137044252,-500.0,0.00018604,2]
[392917131,1762137044379,-500.0,0.00018604,2]
[392917133,1762137044390,-500.0,0.00018604,2]
[392917135,1762137044400,-500.0,0.00018604,2]
[392917137,1762137044409,-500.0,0.00018604,2]
[392917139,1762137044418,-151.0,0.00018604,2]
[392917141,1762137044427,-862.0,0.00018604,2]
[392917143,1762137044436,-500.0,0.00018604,2]
[392917145,1762137044445,-220.37473147,0.00018604,2]
[392917147,1762137044455,-552.0,0.00018604,2]
[392917149,1762137044463,-500.0,0.00018604,2]
[392917151,1762137044473,-352.8921061,0.00018611,2]
[392917153,1762137044482,-500.0,0.00018619,2]
[392917155,1762137044491,-254.0,0.00018629,2]
[392917157,1762137044500,-500.0,0.00018659,2]
[392917159,1762137044509,-151.0,0.00018659,2]
[392917161,1762137044518,-151.0,0.00018659,2]
[392917163,1762137044528,-500.0,0.00018659,2]
[392917165,1762137044538,-500.0,0.00018659,2]
[392917167,1762137044548,-500.0,0.00018659,2]
[392917169,1762137044557,-500.0,0.00018659,2]
[392917171,1762137044567,-500.0,0.00018659,2]
[392917173,1762137044576,-500.0,0.00018659,2]
[392917175,1762137044585,-500.0,0.00018659,2]
[392917178,1762137044595,-151.0,0.00018659,2]
[392917180,1762137044605,-151.0,0.00018659,2]
[392917182,1762137044615,-151.0,0.00018659,2]
[392917184,1762137044625,-502.59902826,0.00018659,2]
[392917186,1762137044636,-500.0,0.00018659,2]
[392917188,1762137044645,-500.0,0.00018659,2]
[392917190,1762137044654,-500.0,0.00018659,2]
[392917192,1762137044663,-500.0,0.00018659,2]
[392917194,1762137044672,-500.0,0.00018659,2]
[392917196,1762137044681,-500.0,0.00018659,2]
[392917198,1762137044691,-500.0,0.00018659,2]
[392917200,1762137044702,-151.0,0.00018659,2]
[392917202,1762137044711,-862.0,0.00018659,2]
[392917204,1762137044720,-500.0,0.00018659,2]
[392917206,1762137044729,-552.0,0.00018659,2]
[392917208,1762137044739,-500.0,0.00018659,2]
[392917210,1762137044750,-398.0,0.00018662,2]
[392917212,1762137044760,-500.0,0.00018667,2]
[392917214,1762137044770,-577.0,0.00018673,2]
[392917216,1762137044780,-500.0,0.00018674,2]
[392917219,1762137044800,-7589.6,0.000187,2]
[392917222,1762137044811,-501.36076342,0.00018714,2]
[392917224,1762137044820,-151.0,0.00018714,2]
[392917225,1762137044830,-151.0,0.00018714,2]
[392917227,1762137044839,-500.0,0.00018714,2]
[392917228,1762137044849,-372.88899323,0.00018714,2]
[392917229,1762137044859,-500.0,0.00018714,2]
[392917230,1762137044868,-500.0,0.00018714,2]
[392917231,1762137044878,-500.0,0.00018714,2]
[392917232,1762137044889,-500.0,0.00018714,2]
[392917233,1762137044899,-502.72222992,0.00018714,2]
[392917234,1762137044909,-151.0,0.00018714,2]
[392917235,1762137044919,-287.29034203,0.00018714,2]
[392917236,1762137044930,-151.0,0.00018714,2]
[392917237,1762137044940,-500.0,0.00018714,2]
[392917238,1762137044950,-508.22776575,0.00018714,2]
[392917239,1762137044959,-500.0,0.00018714,2]
[392917240,1762137044969,-500.0,0.00018714,2]
[392917241,1762137044978,-500.0,0.00018714,2]
[392917242,1762137044988,-500.0,0.00018714,2]
[392917243,1762137044998,-500.0,0.00018714,2]
[392917244,1762137045009,-151.0,0.00018714,2]
[392917245,1762137045018,-862.0,0.00018714,2]
[392917246,1762137045027,-500.0,0.00018714,2]
[392917247,1762137045037,-552.0,0.00018714,2]
[392917248,1762137045047,-500.0,0.00018714,2]
[392917249,1762137045056,-162.38509152,0.00018728,2]
[392917250,1762137045066,-500.0,0.00018749,2]
[392917251,1762137045075,-500.0,0.00018749,2]
[392917252,1762137045085,-500.0,0.00018749,2]
[392917253,1762137045094,-500.0,0.00018749,2]
[392917254,1762137045104,-500.0,0.00018749,2]
[392917255,1762137045113,-500.0,0.00018749,2]
[392917256,1762137045123,-500.0,0.00018749,2]
[392917257,1762137045133,-500.0,0.00018749,2]
[392917258,1762137045143,-355.64,0.00018749,2]
[392917259,1762137045152,-221.90014723,0.00018768,2]
[392917260,1762137045162,-151.0,0.00018768,2]
[392917261,1762137045171,-500.0,0.00018768,2]
[392917262,1762137045180,-500.0,0.00018768,2]
[392917263,1762137045190,-500.0,0.00018768,2]
[392917264,1762137045200,-500.0,0.00018768,2]
[392917265,1762137045209,-500.0,0.00018768,2]
[392917266,1762137045218,-151.0,0.00018768,2]
[392917267,1762137045228,-151.0,0.00018768,2]
[392917268,1762137045238,-391.04631885,0.00018768,2]
[392917269,1762137045247,-500.0,0.00018768,2]
[392917270,1762137045256,-649.4638114,0.00018768,2]
[392917271,1762137045266,-500.0,0.00018768,2]
[392917272,1762137045275,-500.0,0.00018768,2]
[392917273,1762137045285,-500.0,0.00018768,2]
[392917274,1762137045295,-151.0,0.00018768,2]
[392917275,1762137045304,-862.0,0.00018768,2]
[392917276,1762137045313,-500.0,0.00018768,2]
[392917277,1762137045323,-552.0,0.00018768,2]
[392917278,1762137045332,-500.0,0.00018768,2]
[392917279,1762137045342,-500.0,0.00018774,2]
[392917280,1762137045351,-500.0,0.00018774,2]
[392917281,1762137045361,-500.0,0.00018774,2]
[392917282,1762137045370,-500.0,0.00018774,2]
[392917283,1762137045379,-500.0,0.00018774,2]
[392917284,1762137045388,-500.0,0.00018774,2]
[392917285,1762137045398,-500.0,0.00018774,2]
[392917286,1762137045407,-500.0,0.00018774,2]
[392917287,1762137045417,-151.0,0.00018823,2]
[392917288,1762137045426,-500.0,0.00018823,2]
[392917289,1762137045436,-500.0,0.00018823,2]
[392917290,1762137045445,-500.0,0.00018823,2]
[392917291,1762137045454,-500.0,0.00018823,2]
[392917292,1762137045463,-500.0,0.00018823,2]
[392917293,1762137045473,-151.0,0.00018823,2]
[392917294,1762137045483,-235.37144656,0.00018823,2]
[392917295,1762137045492,-500.0,0.00018823,2]
[392917296,1762137045502,-500.0,0.00018823,2]
[392917297,1762137045511,-500.0,0.00018823,2]
[392917298,1762137045520,-500.0,0.00018823,2]
[392917299,1762137045529,-151.0,0.00018823,2]
[392917300,1762137045540,-862.0,0.00018823,2]
[392917301,1762137045549,-500.0,0.00018823,2]
[392917302,1762137045559,-552.0,0.00018823,2]
[392917303,1762137045569,-500.0,0.00018823,2]
[392917304,1762137045579,-168.0,0.00018829,2]
[392917305,1762137045588,-168.0,0.00018878,2]
[392917306,1762137045598,-222.93818194,0.00018878,2]
[392917307,1762137045609,-500.0,0.00018878,2]
[392917308,1762137045618,-500.0,0.00018878,2]
[392917309,1762137045628,-500.0,0.00018878,2]
[392917310,1762137045637,-500.0,0.00018878,2]
[392917311,1762137045647,-500.0,0.00018878,2]
[392917312,1762137045656,-231.78344601,0.00018878,2]
[392917313,1762137045666,-308.58283507,0.00018878,2]
[392917314,1762137045675,-326.67697675,0.00018878,2]
[392917315,1762137045684,-500.0,0.00018878,2]
[392917316,1762137045693,-500.0,0.00018878,2]
[392917317,1762137045702,-193.67798862,0.00018878,2]
[392917318,1762137045712,-862.0,0.00018878,2]
[392917319,1762137045721,-500.0,0.00018878,2]
[392917320,1762137045730,-552.0,0.00018878,2]
[392917321,1762137045740,-162.65384804,0.00018878,2]
[392917322,1762137045749,-7589.6,0.000189,2]
[392917323,1762137045759,-500.0,0.00018933,2]